fUST/lending_fUST_20240729
["ID","MTS","AMOUNT","RATE_DAILY","PERIOD"]
[333559269,1722246550369,-754.75506662,0.00013898,2]
[333559270,1722246550398,-189.89834035,0.00013988,2]
[333559271,1722246550427,-500.0,0.00013988,2]
[333559272,1722246550451,-500.0,0.00013988,2]
[333559273,1722246550475,-500.0,0.00013988,2]
[333559274,1722246550500,-300.04742506,0.00013988,2]
[333559275,1722246550525,-405.55092689,0.00013988,2]
[333559276,1722246550555,-500.0,0.00013988,2]
[333559277,1722246550584,-500.0,0.00013988,2]
[333559278,1722246550613,-423.96767385,0.00013988,2]
[333559279,1722246550643,-500.0,0.00013988,2]
[333559280,1722246550669,-500.0,0.00013988,2]
[333559281,1722246550696,-500.0,0.00013988,2]
[333559282,1722246550720,-12674.84017256,0.00013989,2]
[333559283,1722246551019,848.96464521,9.999e-05,2]
[333559284,1722246555159,-500.0,0.00013988,2]
[333559285,1722246555181,-1748.31023004,0.00013989,2]
[333559286,1722246555205,-500.0,0.00013998,2]
[333559287,1722246555229,-500.0,0.00013998,2]
[333559288,1722246555250,-500.0,0.00013998,2]
[333559289,1722246555273,-500.0,0.00013998,2]
[333559290,1722246555295,-500.0,0.00013998,2]
[333559291,1722246555317,-500.0,0.00013998,2]
[333559292,1722246555338,-500.0,0.00013998,2]
[333559293,1722246555361,-500.0,0.00013998,2]
[333559294,1722246555382,-500.0,0.00013998,2]
[333559295,1722246555403,-500.0,0.00013998,2]
[333559296,1722246555423,-500.34912662,0.00013998,2]
[333559297,1722246555444,-500.0,0.00013998,2]
[333559298,1722246555465,-500.0,0.00013998,2]
[333559299,1722246555488,-500.0,0.00013998,2]
[333559300,1722246555511,-500.0,0.00013998,2]
[333559301,1722246555538,-500.0,0.00013998,2]
[333559302,1722246555561,-500.0,0.00013998,2]
[333559303,1722246555583,-501.26766074,0.00013998,2]
[333559304,1722246555604,-500.0,0.00013998,2]
[333559305,1722246555625,-500.0,0.00013998,2]
[333559306,1722246555645,-500.0,0.00013998,2]
[333559307,1722246555666,-500.0,0.00013998,2]
[333559308,1722246555687,-500.0,0.00013998,2]
[333559309,1722246555709,-500.0,0.00013998,2]
[333559310,1722246555729,-500.0,0.00013998,2]
[333559311,1722246555751,-500.0,0.00013998,2]
[333559312,1722246555774,-327.95812385,0.00013998,2]
[333559313,1722246557776,237.00940818,9.999e-05,2]
[333559314,1722246557822,531.09299059,0.0001212,2]
[333559315,1722246562042,319.40039305,9.999e-05,2]
[333559316,1722246567411,383.04,0.00010959,2]
[333559317,1722246567506,188.13767022,9.999e-05,2]
[333559318,1722246569892,413.70152675,0.0001212,2]
[333559319,1722246573142,-921.51,0.00013988,2]
[333559320,1722246573168,-500.0,0.00013988,2]
[333559321,1722246573190,-500.0,0.00013998,2]
[333559322,1722246573212,-500.0,0.00013998,2]
[333559323,1722246573234,-500.0,0.00013998,2]
[333559324,1722246573259,-500.0,0.00013998,2]
[333559325,1722246573281,-500.0,0.00013998,2]
[333559326,1722246573302,-500.0,0.00013998,2]
[333559327,1722246573324,-500.0,0.00013998,2]
[333559328,1722246573348,-606.44,0.00013998,2]
[333559329,1722246573368,-500.0,0.00013998,2]
[333559330,1722246573391,-530.25,0.00013998,2]
[333559331,1722246573413,-530.25,0.00013998,2]
[333559332,1722246573434,-500.0,0.00013998,2]
[333559333,1722246573455,-500.0,0.00013998,2]
[333559334,1722246573477,-109.60564195,0.00013998,2]
[333559335,1722246575976,341.3986862,0.0001212,2]
[333559336,1722246584803,568.27807593,0.0001212,2]
[333559337,1722246585427,939.7727091,0.0001212,2]
[333559338,1722246588876,403.81235629,0.0001212,2]
[333559339,1722246600656,335.89524988,0.0001212,2]
[333559340,1722246612870,779.26353149,9.999e-05,2]
[333559341,1722246619900,413.70152675,0.0001212,2]
[333559342,1722246625019,188.13767022,0.0001212,2]
[333559343,1722246625450,183.27163343,9.999e-05,2]
[333559344,1722246628555,156.52929486,9.999e-05,2]
[333559345,1722246629794,665.71441405,0.0001212,2]
[333559346,1722246630482,180.38574609,9.999e-05,2]
[333559424,1722246634594,154.89478369,9.999e-05,2]
[333559490,1722246638718,-7818.1088261,0.00013888,2]
[333559494,1722246638729,-785.32399994,0.00013898,2]
[333559497,1722246638738,-300.0,0.00013987,2]
[333559499,1722246638747,-300.0,0.00013987,2]
[333559503,1722246638757,-431.18,0.00013988,2]
[333559505,1722246638766,-455.62,0.00013988,2]
[333559508,1722246638776,-327.67,0.00013988,2]
[333559510,1722246638787,-500.0,0.00013988,2]
[333559512,1722246638797,-500.0,0.00013988,2]
[333559514,1722246638806,-500.0,0.00013988,2]
[333559516,1722246638816,-500.0,0.00013988,2]
[333559518,1722246638825,-500.0,0.00013997,2]
[333559520,1722246638834,-500.0,0.00013997,2]
[333559522,1722246638845,-210.03319754,0.00013997,2]
[333559524,1722246638855,-633.88564882,0.00013997,2]
[333559526,1722246638864,-500.0,0.00013997,2]
[333559528,1722246638874,-196.77737169,0.00013997,2]
[333559530,1722246638884,-203.15522066,0.00013997,2]
[333559532,1722246638894,-161.74847952,0.00013997,2]
[333559534,1722246638904,-500.0,0.00013997,2]
[333559536,1722246638914,-500.0,0.00013998,2]
[333559538,1722246638924,-500.0,0.00013998,2]
[333559540,1722246638933,-500.0,0.00013998,2]
[333559542,1722246638943,-500.0,0.00013998,2]
[333559544,1722246638953,-299.76094058,0.00013998,2]
[333559593,1722246639395,-200.23905942,0.00013998,2]
[333559596,1722246639404,-500.0,0.00013998,2]
[333559598,1722246639413,-500.0,0.00013998,2]
[333559601,1722246639422,-500.0,0.00013998,2]
[333559603,1722246639432,-500.0,0.00013998,2]
[333559605,1722246639441,-500.0,0.00013998,2]
[333559607,1722246639451,-500.0,0.00013998,2]
[333559609,1722246639461,-592.77,0.00013998,2]
[333559612,1722246639471,-260.53377751,0.00013998,2]
[333559614,1722246639481,-1009.02,0.00013998,2]
[333559624,1722246639567,-500.0,0.00013998,2]
[333559626,1722246639582,-500.0,0.00013998,2]
[333559628,1722246639591,-500.0,0.00013998,2]
[333559630,1722246639602,-500.0,0.00013998,2]
[333559632,1722246639611,-1203.9,0.00013998,2]
[333559634,1722246639621,-4876.26,0.00013998,2]
[333559636,1722246639631,-500.0,0.00013998,2]
[333559638,1722246639641,-500.0,0.00013998,2]
[333559640,1722246639651,-573.88,0.00013998,2]
[333559643,1722246639661,-500.0,0.00013998,2]
[333559645,1722246639671,-500.0,0.00013998,2]
[333559647,1722246639680,-500.0,0.00013998,2]
[333559649,1722246639689,-500.0,0.00013998,2]
[333559651,1722246639699,-500.0,0.00013998,2]
[333559653,1722246639708,-500.0,0.00013998,2]
[333559655,1722246639718,-614.91,0.00013998,2]
[333559657,1722246639727,-500.0,0.00013998,2]
[333559659,1722246639737,-565.67,0.00013998,2]
[333559661,1722246639746,-604.84,0.00013998,2]
[333559663,1722246639756,-164.5,0.00013998,2]
[333559665,1722246639765,-500.0,0.00013998,2]
[333559667,1722246639775,-500.0,0.00013998,2]
[333559669,1722246639784,-295.10449769,0.00013998,2]
[333559671,1722246639794,-213.14098696,0.00013998,2]
[333559673,1722246639803,-530.63079671,0.00013998,2]
[333559675,1722246639813,-500.0,0.00013998,2]
[333559677,1722246639822,-500.0,0.00013998,2]
[333559679,1722246639832,-500.0,0.00013998,2]
[333559681,1722246639841,-500.0,0.00013998,2]
[333559684,1722246639857,-255.48294679,0.00013998,2]
[333559694,1722246639952,155.65941029,9.999e-05,2]
[333559712,1722246640102,-603.80405328,0.00013899,2]
[333559714,1722246640112,-500.0,0.00013988,2]
[333559716,1722246640122,-244.51705321,0.00013998,2]
[333559718,1722246640131,-182.51086851,0.00013998,2]
[333559720,1722246640144,-317.48913149,0.00013998,2]
[333559722,1722246640155,-500.0,0.00013998,2]
[333559724,1722246640165,-500.0,0.00013998,2]
[333559726,1722246640176,-500.0,0.00013998,2]
[333559728,1722246640185,-500.0,0.00013998,2]
[333559730,1722246640194,-267.88663613,0.00013998,2]
[333559732,1722246640204,-500.0,0.00013998,2]
[333559734,1722246640213,-500.0,0.00013998,2]
[333559736,1722246640223,-500.0,0.00013998,2]
[333559738,1722246640233,-500.0,0.00013998,2]
[333559741,1722246640245,-500.0,0.00013998,2]
[333559743,1722246640255,-506.6512306,0.00013998,2]
[333559745,1722246640265,-500.0,0.00013998,2]
[333559748,1722246640275,-500.0,0.00013998,2]
[333559751,1722246640285,-500.0,0.00013999,2]
[333559754,1722246640295,-500.0,0.00013999,2]
[333559757,1722246640306,-500.0,0.00013999,2]
[333559759,1722246640316,-5000.0,0.00013999,2]
[333559761,1722246640326,-500.0,0.00013999,2]
[333559763,1722246640336,-364.15548643,0.00013999,2]
[333559765,1722246640345,-500.0,0.00013999,2]
[333559767,1722246640355,-500.0,0.00013999,2]
[333559769,1722246640365,-501.68546651,0.00013999,2]
[333559772,1722246640375,-507.61720522,0.00013999,2]
[333559774,1722246640385,-500.0,0.00013999,2]
[333559776,1722246640396,-504.76180352,0.00013999,2]
[333559778,1722246640406,-500.0,0.00013999,2]
[333559780,1722246640416,-500.0,0.00013999,2]
[333559782,1722246640426,-500.0,0.00013999,2]
[333559784,1722246640435,-500.0,0.00013999,2]
[333559786,1722246640446,-506.46297742,0.00013999,2]
[333559788,1722246640456,-500.0,0.00013999,2]
[333559790,1722246640465,-500.0,0.00013999,2]
[333559792,1722246640474,-500.0,0.00013999,2]
[333559794,1722246640484,-500.0,0.00013999,2]
[333559796,1722246640494,-500.0,0.00013999,2]
[333559798,1722246640503,-500.0,0.00013999,2]
[333559800,1722246640513,-500.0,0.00013999,2]
[333559802,1722246640523,-500.0,0.00013999,2]
[333559804,1722246640533,-500.0,0.00013999,2]
[333559806,1722246640543,-500.0,0.00013999,2]
[333559808,1722246640554,-500.0,0.00013999,2]
[333559811,1722246640566,-500.0,0.00013999,2]
[333559813,1722246640576,-500.0,0.00013999,2]
[333559815,1722246640586,-500.0,0.00013999,2]
[333559817,1722246640599,-500.0,0.00013999,2]
[333559819,1722246640609,-500.0,0.00013999,2]
[333559821,1722246640620,-630.33,0.00013999,2]
[333559823,1722246640632,-500.0,0.00013999,2]
[333559825,1722246640642,-500.0,0.00013999,2]
[333559827,1722246640653,-508.12849146,0.00013999,2]
[333559829,1722246640662,-195.91279751,0.00013999,2]
[333559831,1722246640672,-623.7679149,0.00013999,2]
[333559833,1722246640683,-500.0,0.00013999,2]
[333559835,1722246640692,-500.0,0.00013999,2]
[333559837,1722246640702,-532.70786361,0.00013999,2]
[333559839,1722246640712,-500.0,0.00013999,2]
[333559841,1722246640722,-500.0,0.00013999,2]
[333559843,1722246640732,-500.0,0.00013999,2]
[333559845,1722246640742,-500.0,0.00013999,2]
[333559847,1722246640752,-538.00111446,0.00013999,2]
[333559849,1722246640761,-500.0,0.00013999,2]
[333559850,1722246640770,-500.0,0.00013999,2]
[333559852,1722246640780,-500.0,0.00013999,2]
[333559854,1722246640789,-500.0,0.00013999,2]
[333559856,1722246640799,-502.43460247,0.00013999,2]
[333559858,1722246640809,-500.84008749,0.00013999,2]
[333559861,1722246640822,-328.85603228,0.00013999,2]
[333559863,1722246640831,-500.0,0.00013999,2]
[333559865,1722246640841,-500.0,0.00013999,2]
[333559867,1722246640850,-578.75,0.00013999,2]
[333559869,1722246640860,-500.0,0.00013999,2]
[333559871,1722246640869,-578.75,0.00013999,2]
[333559873,1722246640879,-500.0,0.00013999,2]
[333559875,1722246640888,-500.0,0.00013999,2]
[333559877,1722246640899,-500.0,0.00013999,2]
[333559879,1722246640909,-502.75779152,0.00013999,2]
[333559881,1722246640919,-500.0,0.00013999,2]
[333559883,1722246640928,-506.55284849,0.00013999,2]
[333559885,1722246640938,-500.0,0.00013999,2]
[333559887,1722246640947,-500.0,0.00013999,2]
[333559889,1722246640957,-500.0,0.00013999,2]
[333559891,1722246640966,-500.0,0.00013999,2]
[333559893,1722246640976,-500.0,0.00013999,2]
[333559895,1722246640985,-500.0,0.00013999,2]
[333559897,1722246640994,-500.0,0.00013999,2]
[333559899,1722246641004,-500.0,0.00013999,2]
[333559901,1722246641015,-561.66723649,0.00013999,2]
[333559903,1722246641025,-506.41407044,0.00013999,2]
[333559905,1722246641035,-500.0,0.00013999,2]
[333559907,1722246641044,-500.0,0.00013999,2]
[333559909,1722246641054,-500.0,0.00013999,2]
[333559911,1722246641064,-500.0,0.00013999,2]
[333559913,1722246641073,-500.0,0.00013999,2]
[333559915,1722246641083,-500.0,0.00013999,2]
[333559917,1722246641092,-500.0,0.00013999,2]
[333559919,1722246641101,-500.0,0.00013999,2]
[333559921,1722246641111,-500.0,0.00013999,2]
[333559923,1722246641121,-500.0,0.00013999,2]
[333559925,1722246641130,-500.0,0.00013999,2]
[333559928,1722246641140,-500.0,0.00013999,2]
[333559930,1722246641150,-500.0,0.00013999,2]
[333559932,1722246641160,-500.0,0.00013999,2]
[333559934,1722246641169,-500.0,0.00013999,2]
[333559936,1722246641178,-500.0,0.00013999,2]
[333559938,1722246641188,-350.31172901,0.00013999,2]
[333559940,1722246641198,-500.0,0.00013999,2]
[333559942,1722246641208,-500.0,0.00013999,2]
[333559944,1722246641218,-500.0,0.00013999,2]
[333559946,1722246641227,-500.0,0.00013999,2]
[333559948,1722246641237,-500.0,0.00013999,2]
[333559950,1722246641247,-471.58784561,0.00013999,2]
[333559952,1722246641257,-500.0,0.00013999,2]
[333559954,1722246641266,-500.30097071,0.00013999,2]
[333559956,1722246641276,-517.90856838,0.00013999,2]
[333559958,1722246641286,-500.0,0.00013999,2]
[333559960,1722246641296,-500.0,0.00013999,2]
[333559962,1722246641306,-500.0,0.00013999,2]
[333559964,1722246641316,-226.71352181,0.00013999,2]
[333560253,1722246644199,-500.0,0.00013988,2]
[333560255,1722246644208,-273.28647819,0.00013999,2]
[333560257,1722246644218,-578.68,0.00013999,2]
[333560259,1722246644227,-155.01743864,0.00014,2]
[333560261,1722246644236,-154.79133754,0.00014,2]
[333560263,1722246644246,-150.112233,0.00014,2]
[333560265,1722246644255,-603.80405326,0.00014145,2]
[333560267,1722246644264,-260.882786,0.00014247,2]
[333560269,1722246644274,-500.0,0.00014261,2]
[333560271,1722246644285,-224.11,0.00014262,2]
[333560274,1722246644295,-500.0,0.00014262,2]
[333560276,1722246644305,-410.18,0.00014262,2]
[333560278,1722246644316,-921.51,0.00014262,2]
[333560280,1722246644328,-500.0,0.00014262,2]
[333560282,1722246644339,-282.19,0.00014262,2]
[333560285,1722246644349,-207.36435805,0.00014262,2]
[333560287,1722246644359,-500.0,0.00014262,2]
[333560289,1722246644368,-188.79,0.00014262,2]
[333560291,1722246644378,-1136.85251272,0.00014262,2]
[333560293,1722246644390,-3484.57418478,0.00014262,2]
[333560295,1722246644402,-9801.7237051,0.00014262,2]
[333560297,1722246644412,-500.0,0.00014271,2]
[333560299,1722246644421,-433.13691307,0.00014272,5]
[333560301,1722246644430,-500.0,0.00014272,2]
[333560313,1722246644531,-500.0,0.00014272,2]
[333560315,1722246644541,-500.0,0.00014272,2]
[333560318,1722246644553,-181.63295852,0.00014272,2]
[333560320,1722246644567,-500.0,0.00014272,2]
[333560322,1722246644577,-500.0,0.00014272,2]
[333560324,1722246644587,-500.0,0.00014272,2]
[333560326,1722246644597,-500.0,0.00014272,2]
[333560328,1722246644609,-500.0,0.00014272,2]
[333560330,1722246644620,-500.0,0.00014272,2]
[333560333,1722246644631,-500.0,0.00014272,2]
[333560335,1722246644642,-500.0,0.00014272,2]
[333560337,1722246644653,-500.0,0.00014272,2]
[333560339,1722246644664,-500.0,0.00014272,2]
[333560341,1722246644674,-500.0,0.00014272,2]
[333560343,1722246644683,-500.0,0.00014272,2]
[333560345,1722246644692,-500.0,0.00014272,2]
[333560347,1722246644701,-500.0,0.00014272,2]
[333560349,1722246644712,-500.0,0.00014272,2]
[333560352,1722246644724,-500.0,0.00014272,2]
[333560354,1722246644736,-500.0,0.00014272,2]
[333560356,1722246644746,-500.0,0.00014272,2]
[333560358,1722246644757,-500.0,0.00014272,2]
[333560361,1722246644767,-500.0,0.00014272,2]
[333560363,1722246644776,-500.0,0.00014272,2]
[333560365,1722246644785,-1009.02,0.00014272,2]
[333560367,1722246644794,-500.0,0.00014272,2]
[333560369,1722246644803,-500.0,0.00014272,2]
[333560371,1722246644812,-500.0,0.00014272,2]
[333560373,1722246644821,-1203.9,0.00014272,2]
[333560375,1722246644830,-4876.26,0.00014272,2]
[333560377,1722246644840,-500.0,0.00014272,2]
[333560379,1722246644849,-500.0,0.00014272,2]
[333560381,1722246644861,-433.32,0.00014272,2]
[333560383,1722246644870,-500.0,0.00014272,2]
[333560385,1722246644879,-565.67,0.00014272,2]
[333560387,1722246644888,-500.0,0.00014272,2]
[333560389,1722246644898,-500.0,0.00014272,2]
[333560391,1722246644907,-176.13,0.00014272,2]
[333560393,1722246644916,-229.33,0.00014272,2]
[333560395,1722246644925,-500.0,0.00014272,2]
[333560397,1722246644934,-500.0,0.00014272,2]
[333560399,1722246644944,-500.0,0.00014272,2]
[333560401,1722246644953,-500.0,0.00014272,2]
[333560403,1722246644962,-500.0,0.00014272,2]
[333560405,1722246644971,-500.0,0.00014272,2]
[333560407,1722246644980,-500.0,0.00014272,2]
[333560409,1722246644990,-450.79804281,0.00014273,2]
[333560411,1722246644999,-300.12596697,0.00014273,2]
[333560413,1722246645009,-500.0,0.00014273,2]
[333560415,1722246645018,-500.0,0.00014273,2]
[333560417,1722246645027,-500.0,0.00014273,2]
[333560419,1722246645037,-543.89,0.00014273,2]
[333560421,1722246645048,-617.8,0.00014273,2]
[333560423,1722246645057,-500.0,0.00014273,2]
[333560425,1722246645068,-505.98,0.00014273,2]
[333560427,1722246645078,-500.0,0.00014273,2]
[333560429,1722246645087,-500.0,0.00014273,2]
[333560431,1722246645097,-500.0,0.00014273,2]
[333560433,1722246645107,-500.0,0.00014273,2]
[333560435,1722246645116,-500.0,0.00014273,2]
[333560438,1722246645127,-500.0,0.00014273,2]
[333560440,1722246645136,-333.69468713,0.00014273,2]
[333560442,1722246645145,-500.0,0.00014273,2]
[333560444,1722246645158,-603.68,0.00014273,2]
[333560446,1722246645169,-200.0,0.00014379,2]
[333560448,1722246645179,-603.80405326,0.00014392,2]
[333560450,1722246645188,-500.0,0.00014536,2]
[333560452,1722246645199,-921.51,0.00014536,2]
[333560454,1722246645208,-500.0,0.00014536,2]
[333560456,1722246645217,-500.0,0.00014536,2]
[333560458,1722246645227,-14423.1504026,0.00014536,2]
[333560460,1722246645235,-500.0,0.00014545,2]
[333560462,1722246645244,-500.0,0.00014546,2]
[333560464,1722246645253,-578.75,0.00014546,2]
[333560465,1722246645263,-628.0,0.00014546,2]
[333560467,1722246645272,-500.0,0.00014546,2]
[333560469,1722246645282,-500.0,0.00014546,2]
[333560471,1722246645291,-500.0,0.00014546,2]
[333560473,1722246645300,-500.0,0.00014546,2]
[333560475,1722246645309,-500.0,0.00014546,2]
[333560478,1722246645318,-500.0,0.00014546,2]
[333560480,1722246645327,-200.67,0.00014546,2]
[333560482,1722246645336,-500.0,0.00014546,2]
[333560484,1722246645346,-500.0,0.00014546,2]
[333560486,1722246645355,-500.0,0.00014546,2]
[333560488,1722246645366,-500.0,0.00014546,2]
[333560490,1722246645376,-178.94741675,0.00014546,2]
[333560492,1722246645384,-500.0,0.00014546,2]
[333560494,1722246645394,-500.0,0.00014546,2]
[333560497,1722246645405,-500.0,0.00014546,2]
[333560499,1722246645415,-500.0,0.00014546,2]
[333560501,1722246645424,-1009.02,0.00014546,2]
[333560503,1722246645434,-572.16,0.00014546,2]
[333560505,1722246645443,-500.0,0.00014546,2]
[333560507,1722246645453,-1203.9,0.00014546,2]
[333560509,1722246645462,-4876.26,0.00014546,2]
[333560512,1722246645473,-500.0,0.00014546,2]
[333560514,1722246645483,-327.24,0.00014546,2]
[333560516,1722246645492,-500.0,0.00014546,2]
[333560518,1722246645502,-151.0,0.00014546,2]
[333560520,1722246645510,-565.67,0.00014546,2]
[333560522,1722246645520,-500.0,0.00014546,2]
[333560524,1722246645529,-500.0,0.00014546,2]
[333560526,1722246645540,-500.0,0.00014546,2]
[333560528,1722246645551,-151.0,0.00014546,2]
[333560530,1722246645565,-151.0,0.00014546,2]
[333560532,1722246645574,-500.0,0.00014546,2]
[333560534,1722246645584,-500.0,0.00014546,2]
[333560536,1722246645594,-500.0,0.00014546,2]
[333560538,1722246645603,-500.0,0.00014546,2]
[333560540,1722246645612,-223.76,0.00014546,2]
[333560542,1722246645622,-500.0,0.00014546,2]
[333560544,1722246645631,-151.0,0.00014546,2]
[333560546,1722246645642,-151.0,0.00014546,2]
[333560548,1722246645655,-500.0,0.00014547,2]
[333560550,1722246645665,-507.93905599,0.00014547,2]
[333560553,1722246645678,-141.60094401,0.00014547,2]
[333560555,1722246645687,-500.0,0.00014547,2]
[333560557,1722246645697,-500.0,0.00014547,2]
[333560559,1722246645705,-512.84,0.00014547,2]
[333560561,1722246645715,-500.0,0.00014547,2]
[333560563,1722246645723,-500.0,0.00014547,2]
[333560565,1722246645732,-255.09,0.00014547,2]
[333560567,1722246645742,-500.0,0.00014547,2]
[333560569,1722246645751,-150.112233,0.000146,2]
[333560571,1722246645761,-500.0,0.00014689,2]
[333560573,1722246645770,-757.02209491,0.0001469,2]
[333560575,1722246645779,-7943.85453559,0.0001469,2]
[333560595,1722246645959,-22.91871852,0.0001469,2]
[333560614,1722246646125,-603.80405326,0.00014638,2]
[333560616,1722246646135,-151.0,0.0001469,2]
[333560618,1722246646145,-124.1226993,0.0001469,2]
[333560621,1722246646157,-26.8773007,0.0001469,2]
[333560623,1722246646167,-363.55581312,0.00014711,2]
[333560625,1722246646179,-5511.394515,0.00014711,2]
[333560627,1722246646190,-961.81211323,0.00014711,2]
[333560948,1722246649267,806.84859202,9.999e-05,2]
[333562303,1722246672208,156.73778613,9.999e-05,2]
[333562304,1722246678304,158.43059337,9.999e-05,2]
[333562305,1722246707858,779.26353149,9.999e-05,2]
[333562306,1722246710774,144.99718354,0.0001212,2]
[333562307,1722246710794,658.6338625,0.0001212,2]
[333562308,1722246714547,297.07388953,9.999e-05,2]
[333562309,1722246715984,197.36110812,0.0001212,2]
[333562310,1722246718171,240.67923491,9.999e-05,2]
[333562312,1722246724492,180.13853817,9.999e-05,2]
[333562313,1722246748526,188.13767022,9.999e-05,2]
[333562314,1722246752242,165.42397432,9.999e-05,2]
[333562315,1722246769740,201.37315589,9.999e-05,2]
[333562317,1722246787697,154.80649189,9.999e-05,2]
[333562318,1722246801947,779.26353149,9.999e-05,2]
[333562320,1722246816433,413.70152675,9.999e-05,2]
[333562321,1722246824373,200.48522772,9.999e-05,2]
[333562323,1722246836682,154.62117811,9.999e-05,2]
[333562324,1722246836727,333.81086281,9.999e-05,2]
[333562325,1722246848135,208.66268752,9.999e-05,2]
[333562326,1722246848585,154.62117811,9.999e-05,2]
[333562327,1722246851536,244.88521144,9.999e-05,2]
[333562328,1722246854434,403.53391544,9.999e-05,2]
[333562329,1722246869440,403.53391544,9.999e-05,2]
[333562330,1722246895970,154.62117811,9.999e-05,2]
[333562331,1722246900888,779.26353149,9.999e-05,2]
[333562332,1722246908473,663.90040361,9.999e-05,2]
[333562333,1722246912319,201.37315589,9.999e-05,2]
[333562334,1722246921516,497.79678231,9.999e-05,2]
[333562335,1722246922670,158.37473223,9.999e-05,2]
[333562336,1722246928392,813.13413846,9.999e-05,2]
[333562337,1722246929907,154.62117811,9.999e-05,2]
[333562338,1722246937508,1305.57129431,9.999e-05,2]
[333562339,1722246944134,208.66268752,9.999e-05,2]
[333562340,1722246944391,813.13413846,9.999e-05,2]
[333562341,1722246958134,208.66268752,9.999e-05,2]
[333562342,1722246968977,154.62117811,9.999e-05,2]
[333562343,1722246971600,155.04973841,9.999e-05,2]
[333562344,1722246985463,166.83113834,9.999e-05,2]
[333562345,1722246995907,880.87334208,9.999e-05,2]
[333562346,1722247001506,209.76156899,9.999e-05,2]
[333562347,1722247002740,160.08287463,9.999e-05,2]
[333562348,1722247013392,2964.92328943,9.999e-05,2]
[333562349,1722247022929,154.62117811,9.999e-05,2]
[333562350,1722247024351,201.13750966,9.999e-05,2]
[333562351,1722247033595,533.65002993,9.999e-05,2]
[333562352,1722247034448,663.90040361,9.999e-05,2]
[333562353,1722247050454,663.90040361,9.999e-05,2]
[333562354,1722247051260,4679.03335492,9.999e-05,2]
[333562355,1722247052978,154.62117811,9.999e-05,2]
[333562356,1722247070491,154.62117811,9.999e-05,2]
[333562357,1722247077153,208.66268752,9.999e-05,2]
[333562358,1722247104022,241.32566655,9.999e-05,2]
[333562359,1722247113936,155.73373415,9.999e-05,2]
[333562360,1722247138602,533.65002993,9.999e-05,2]
[333562361,1722247171161,305.15932364,9.999e-05,2]
[333562362,1722247177253,663.90040361,9.999e-05,2]
[333562363,1722247182528,209.76156899,9.999e-05,2]
[333562364,1722247211025,197.88738864,9.999e-05,2]
[333562365,1722247226606,533.65002993,9.999e-05,2]
[333562366,1722247260811,162.98417288,9.999e-05,2]
[333562367,1722247267469,339.10615696,9.999e-05,2]
[333562369,1722247286532,663.90040361,9.999e-05,2]
[333562370,1722247313635,533.65002993,9.999e-05,2]
[333562371,1722247331637,389.78067015,9.999e-05,2]
[333562372,1722247332814,154.68290005,9.999e-05,2]
[333562373,1722247351818,162.98417288,9.999e-05,2]
[333562374,1722247370739,160.08287463,9.999e-05,2]
[333562375,1722247377468,501.82380381,9.999e-05,2]
[333562376,1722247413645,335.93591007,9.999e-05,2]
[333562377,1722247454827,162.98417288,9.999e-05,2]
[333562378,1722247457829,154.60575532,9.999e-05,2]